[Event "Championnat d'Europe Rapide"]
[Date "2024.12.07"]
[White "Stankovic, Milos"]
[Black "Georgiev, Kiril"]
[WhiteElo "2462"]
[BlackElo "2537"]
[Round "4.13"]
[Result "0-1"]
[TimeControl "900+10"]

1. d4 {[%emt 00:00:03] [%clk 00:15:17]} Nf6 {[%emt 00:00:07] [%clk 00:15:13]} 2.
Nf3 {[%emt 00:00:03] [%clk 00:15:24]} d5 {[%emt 00:00:22] [%clk 00:15:00]} 3.
Bf4 {[%emt 00:00:04] [%clk 00:15:30]} c5 {[%emt 00:00:28] [%clk 00:14:43]} 4. e3
{[%emt 00:00:04] [%clk 00:15:35]} Nc6 {[%emt 00:00:03] [%clk 00:14:50]} 5. Bb5
{[%emt 00:00:36] [%clk 00:15:09]} e6 {[%emt 00:00:51] [%clk 00:14:10]} 6. O-O
{[%emt 00:02:30] [%clk 00:12:49]} Bd7 {[%emt 00:00:47] [%clk 00:13:33]} 7. Nbd2
{[%emt 00:03:22] [%clk 00:09:36]} a6 {[%emt 00:02:04] [%clk 00:11:39]} 8. Bxc6
{[%emt 00:00:19] [%clk 00:09:27]} Bxc6 {[%emt 00:00:03] [%clk 00:11:46]} 9. Ne5
{[%emt 00:00:02] [%clk 00:09:35]} Rc8 {[%emt 00:00:08] [%clk 00:11:49]} 10. Ndf3
{[%emt 00:01:33] [%clk 00:08:11]} Be7 {[%emt 00:00:36] [%clk 00:11:22]} 11. dxc5
{[%emt 00:01:53] [%clk 00:06:30]} Bxc5 {[%emt 00:00:40] [%clk 00:10:51]} 12. c4
{[%emt 00:00:04] [%clk 00:06:37]} O-O {[%emt 00:00:13] [%clk 00:10:47]} 13. Rc1
{[%emt 00:00:15] [%clk 00:06:32]} dxc4 {[%emt 00:02:49] [%clk 00:08:08]} 14.
Nxc6 {[%emt 00:00:22] [%clk 00:06:21]} Rxc6 {[%emt 00:00:09] [%clk 00:08:09]}
15. Rxc4 {[%emt 00:02:30] [%clk 00:04:01]} Nd5 {[%emt 00:02:14] [%clk 00:06:05]}
16. Qc2 {[%emt 00:01:59] [%clk 00:02:11]} Nxf4 {[%emt 00:01:00] [%clk 00:05:15]}
17. exf4 {[%emt 00:00:02] [%clk 00:02:19]} Qe7 {[%emt 00:01:05] [%clk 00:04:20]}
18. Ng5 {[%emt 00:00:50] [%clk 00:01:39]} g6 {[%emt 00:00:14] [%clk 00:04:16]}
19. b4 {[%emt 00:01:12] [%clk 00:00:38]} Bxb4 {[%emt 00:00:29] [%clk 00:03:56]}
20. Rxc6 {[%emt 00:00:01] [%clk 00:00:47]} bxc6 {[%emt 00:00:03] [%clk
00:04:04]} 21. Qxc6 {[%emt 00:00:04] [%clk 00:00:54]} a5 {[%emt 00:00:39] [%clk
00:03:34]} 22. Rd1 {[%emt 00:00:06] [%clk 00:00:58]} Rd8 {[%emt 00:00:15] [%clk
00:03:29]} 23. Rxd8+ {[%emt 00:00:21] [%clk 00:00:48]} Qxd8 {[%emt 00:00:01]
[%clk 00:03:37]} 24. h4 {[%emt 00:00:07] [%clk 00:00:52]} h6 {[%emt 00:00:44]
[%clk 00:03:03]} 25. Nf3 {[%emt 00:00:06] [%clk 00:00:55]} Qd1+ {[%emt 00:00:59]
[%clk 00:02:13]} 26. Kh2 {[%emt 00:00:03] [%clk 00:01:03]} Bd6 {[%emt 00:00:10]
[%clk 00:02:12]} 27. Ne5 {[%emt 00:00:51] [%clk 00:00:23]} Bxe5 {[%emt 00:00:25]
[%clk 00:01:57]} 28. fxe5 {[%emt 00:00:01] [%clk 00:00:31]} Qd2 {[%emt 00:00:13]
[%clk 00:01:54]} 29. Qa8+ {[%emt 00:00:15] [%clk 00:00:28]} Kg7 {[%emt 00:00:03]
[%clk 00:02:00]} 30. Qf3 {[%emt 00:00:03] [%clk 00:00:35]} Qd4 {[%emt 00:00:41]
[%clk 00:01:28]} 31. Qf6+ {[%emt 00:00:07] [%clk 00:00:39]} Kg8 {[%emt 00:00:03]
[%clk 00:01:35]} 32. Kg3 {[%emt 00:00:15] [%clk 00:00:34]} a4 {[%emt 00:00:07]
[%clk 00:01:38]} 33. Qf4 {[%emt 00:00:10] [%clk 00:00:33]} Qc3+ {[%emt 00:00:06]
[%clk 00:01:43]} 34. Kh2 {[%emt 00:00:10] [%clk 00:00:33]} a3 {[%emt 00:00:11]
[%clk 00:01:42]} 35. Qe4 {[%emt 00:00:30] [%clk 00:00:14]} Qb2 {[%emt 00:00:27]
[%clk 00:01:24]} 36. h5 {[%clk 00:00:23]} gxh5 {[%emt 00:00:41] [%clk 00:00:54]}
37. Qf4 {[%clk 00:00:32]} Qxa2 {[%emt 00:00:11] [%clk 00:00:52]} 38. Qg3+ {[%emt
00:00:24] [%clk 00:00:18]} Kf8 {[%emt 00:00:10] [%clk 00:00:52]} 39. Qh4 {[%emt
00:00:06] [%clk 00:00:21]} Qd2 {[%emt 00:00:12] [%clk 00:00:48]} 0-1

[Site "Europe Echecs"]

[Event "Championnat d'Europe Rapide"]
[Date "2024.12.07"]
[White "Magold, Filip"]
[Black "Laurusas, Tomas"]
[WhiteElo "2428"]
[BlackElo "2578"]
[Round "4.14"]
[Result "1-0"]
[TimeControl "900+10"]

1. d4 {[%emt 00:01:09] [%clk 00:14:10]} Nf6 {[%emt 00:00:10] [%clk 00:15:11]} 2.
Nf3 {[%emt 00:00:03] [%clk 00:14:16]} d5 {[%emt 00:00:02] [%clk 00:15:20]} 3. c4
{[%emt 00:00:02] [%clk 00:14:25]} c6 {[%clk 00:15:29]} 4. cxd5 {[%emt 00:00:21]
[%clk 00:14:14]} cxd5 {[%emt 00:00:01] [%clk 00:15:37]} 5. Nc3 {[%emt 00:00:02]
[%clk 00:14:23]} Nc6 {[%emt 00:00:03] [%clk 00:15:42]} 6. Bf4 {[%emt 00:00:03]
[%clk 00:14:30]} e6 {[%emt 00:02:01] [%clk 00:13:52]} 7. e3 {[%emt 00:00:05]
[%clk 00:14:35]} Be7 {[%emt 00:00:02] [%clk 00:14:00]} 8. Bd3 {[%emt 00:00:03]
[%clk 00:14:42]} Nh5 {[%emt 00:00:04] [%clk 00:14:07]} 9. Be5 {[%emt 00:00:08]
[%clk 00:14:43]} f6 {[%emt 00:00:08] [%clk 00:14:09]} 10. Bg3 {[%emt 00:00:12]
[%clk 00:14:40]} O-O {[%emt 00:00:22] [%clk 00:13:57]} 11. Ng5 {[%emt 00:01:34]
[%clk 00:13:17]} fxg5 {[%emt 00:05:08] [%clk 00:08:59]} 12. Qxh5 {[%emt
00:00:03] [%clk 00:13:24]} g6 {[%emt 00:00:01] [%clk 00:09:08]} 13. Qe2 {[%emt
00:02:05] [%clk 00:11:29]} Nb4 {[%emt 00:00:25] [%clk 00:08:54]} 14. Bb1 {[%emt
00:00:07] [%clk 00:11:31]} Bd7 {[%emt 00:00:34] [%clk 00:08:31]} 15. a3 {[%emt
00:00:01] [%clk 00:11:40]} Nc6 {[%clk 00:08:40]} 16. Bd3 {[%emt 00:00:01] [%clk
00:11:49]} Rc8 {[%emt 00:00:03] [%clk 00:08:47]} 17. O-O {[%emt 00:00:16] [%clk
00:11:42]} a6 {[%emt 00:00:39] [%clk 00:08:19]} 18. Rad1 {[%emt 00:00:11] [%clk
00:11:40]} Bf6 {[%emt 00:00:05] [%clk 00:08:24]} 19. Rfe1 {[%emt 00:00:38] [%clk
00:11:11]} Kh8 {[%emt 00:00:40] [%clk 00:07:55]} 20. Rc1 {[%emt 00:00:37] [%clk
00:10:45]} Qe7 {[%emt 00:00:31] [%clk 00:07:34]} 21. b4 {[%emt 00:00:20] [%clk
00:10:34]} Na7 {[%emt 00:00:18] [%clk 00:07:25]} 22. e4 {[%emt 00:01:35] [%clk
00:09:09]} Qf7 {[%emt 00:01:17] [%clk 00:06:19]} 23. e5 {[%emt 00:01:55] [%clk
00:07:24]} Bd8 {[%emt 00:00:54] [%clk 00:05:35]} 24. Rc2 {[%emt 00:01:04] [%clk
00:06:30]} Nc6 {[%emt 00:00:42] [%clk 00:05:03]} 25. Qe3 {[%clk 00:06:39]} Ne7
{[%emt 00:00:46] [%clk 00:04:28]} 26. Qxg5 {[%emt 00:03:00] [%clk 00:03:48]} Nf5
{[%emt 00:00:02] [%clk 00:04:37]} 27. Qf4 {[%emt 00:00:05] [%clk 00:03:52]} g5
{[%emt 00:00:09] [%clk 00:04:38]} 28. Qd2 {[%emt 00:00:07] [%clk 00:03:54]} Nxd4
{[%emt 00:00:09] [%clk 00:04:40]} 29. Rb2 {[%emt 00:00:02] [%clk 00:04:03]} Nf5
{[%emt 00:01:49] [%clk 00:03:01]} 30. Bxf5 {[%emt 00:01:26] [%clk 00:02:46]}
Qxf5 {[%emt 00:00:01] [%clk 00:03:10]} 31. Ne2 {[%emt 00:01:25] [%clk 00:01:31]}
Bb6 {[%emt 00:00:04] [%clk 00:03:16]} 32. Nd4 {[%emt 00:00:02] [%clk 00:01:40]}
Qg4 {[%emt 00:00:08] [%clk 00:03:17]} 33. Nf3 {[%emt 00:00:02] [%clk 00:01:49]}
Rf5 {[%emt 00:00:21] [%clk 00:03:05]} 34. Kh1 {[%emt 00:00:24] [%clk 00:01:35]}
Rxf3 {[%emt 00:02:29] [%clk 00:00:47]} 35. gxf3 {[%emt 00:00:01] [%clk
00:01:43]} Qxf3+ {[%emt 00:00:02] [%clk 00:00:56]} 36. Kg1 {[%clk 00:01:52]} h6
{[%emt 00:00:02] [%clk 00:01:05]} 37. Rc2 {[%emt 00:00:15] [%clk 00:01:47]} Rf8
{[%emt 00:00:03] [%clk 00:01:11]} 38. Rc3 {[%emt 00:00:45] [%clk 00:01:12]} Qf5
{[%emt 00:00:09] [%clk 00:01:10]} 39. Qc2 {[%emt 00:00:38] [%clk 00:00:47]} Qf7
{[%emt 00:00:05] [%clk 00:01:12]} 40. Qd2 {[%emt 00:00:38] [%clk 00:00:21]} Qf5
{[%emt 00:00:37] [%clk 00:00:46]} 41. Qc2 {[%emt 00:00:01] [%clk 00:00:30]} Qf7
{[%clk 00:00:55]} 42. Qd2 {[%clk 00:00:40]} Bb5 {[%emt 00:00:13] [%clk
00:00:51]} 43. Rec1 {[%emt 00:00:26] [%clk 00:00:24]} Bc4 {[%emt 00:00:09] [%clk
00:00:52]} 44. Rxc4 {[%emt 00:00:02] [%clk 00:00:32]} dxc4 {[%clk 00:01:01]} 45.
Rxc4 {[%clk 00:00:41]} Rd8 {[%emt 00:00:13] [%clk 00:00:58]} 46. Qe2 {[%emt
00:00:14] [%clk 00:00:37]} Qf5 {[%emt 00:00:20] [%clk 00:00:49]} 47. Rc2 {[%emt
00:00:27] [%clk 00:00:20]} Qd3 {[%emt 00:00:18] [%clk 00:00:41]} 48. Qxd3 {[%emt
00:00:05] [%clk 00:00:24]} Rxd3 {[%clk 00:00:50]} 49. Rc8+ {[%emt 00:00:01]
[%clk 00:00:33]} Rd8 {[%clk 00:01:00]} 50. Rc3 {[%emt 00:00:10] [%clk 00:00:32]}
Kg7 {[%emt 00:00:10] [%clk 00:01:00]} 51. Kf1 {[%emt 00:00:13] [%clk 00:00:30]}
h5 {[%emt 00:00:26] [%clk 00:00:43]} 52. h4 {[%clk 00:00:39]} g4 {[%emt
00:00:05] [%clk 00:00:48]} 53. Ke2 {[%emt 00:00:02] [%clk 00:00:47]} Kg6 {[%emt
00:00:01] [%clk 00:00:57]} 54. Rc4 {[%emt 00:00:27] [%clk 00:00:30]} Rd7 {[%emt
00:00:40] [%clk 00:00:27]} 55. Rc8 {[%emt 00:00:01] [%clk 00:00:39]} Kf5 {[%clk
00:00:36]} 56. Rg8 {[%emt 00:00:14] [%clk 00:00:35]} Rc7 {[%emt 00:00:13] [%clk
00:00:33]} 57. Kd3 {[%emt 00:00:07] [%clk 00:00:38]} Rd7+ {[%clk 00:00:43]} 58.
Ke2 {[%clk 00:00:47]} Ke4 {[%emt 00:00:22] [%clk 00:00:31]} 59. Rh8 {[%emt
00:00:29] [%clk 00:00:28]} Rc7 {[%emt 00:00:01] [%clk 00:00:39]} 60. Kd2 {[%emt
00:00:07] [%clk 00:00:31]} Rf7 {[%emt 00:00:20] [%clk 00:00:29]} 61. Ke2 {[%emt
00:00:07] [%clk 00:00:34]} Rc7 {[%emt 00:00:14] [%clk 00:00:26]} 62. Kd2 {[%clk
00:00:43]} Kf3 {[%emt 00:00:14] [%clk 00:00:21]} 63. Rf8+ {[%emt 00:00:01] [%clk
00:00:52]} Kg2 {[%clk 00:00:30]} 64. Rf6 {[%emt 00:00:01] [%clk 00:01:01]} Rc6
{[%emt 00:00:15] [%clk 00:00:25]} 65. Kd3 {[%emt 00:00:09] [%clk 00:01:01]} Ba7
{[%emt 00:00:08] [%clk 00:00:28]} 66. Rf7 {[%emt 00:00:29]} Rc1 {[%clk
00:00:24]} 67. Rf6 {[%emt 00:00:10] [%clk 00:00:56]} Re1 {[%emt 00:00:15] [%clk
00:00:19]} 68. Kd2 {[%emt 00:00:06] [%clk 00:01:01]} Rf1 {[%emt 00:00:03] [%clk
00:00:26]} 69. Ke2 {[%clk 00:01:10]} Ra1 {[%emt 00:00:08] [%clk 00:00:27]} 70.
Rxe6 {[%emt 00:00:46] [%clk 00:00:34]} Ra2+ {[%emt 00:00:02] [%clk 00:00:36]}
71. Kd3 {[%emt 00:00:19] [%clk 00:00:25]} Rxa3+ {[%emt 00:00:11] [%clk
00:00:35]} 72. Ke4 {[%emt 00:00:16] [%clk 00:00:19]} Bxf2 {[%emt 00:00:02] [%clk
00:00:42]} 73. Bxf2 {[%emt 00:00:01] [%clk 00:00:28]} Kxf2 {[%emt 00:00:01]
[%clk 00:00:52]} 74. Rf6+ {[%emt 00:00:01] [%clk 00:00:36]} Ke2 {[%emt 00:00:15]
[%clk 00:00:47]} 75. e6 {[%clk 00:00:46]} Re3+ {[%emt 00:00:30] [%clk 00:00:26]}
76. Kd4 {[%emt 00:00:40] [%clk 00:00:16]} g3 {[%emt 00:00:16] [%clk 00:00:20]}
77. Rg6 {[%clk 00:00:25]} Kf2 {[%emt 00:00:14] [%clk 00:00:17]} 78. Rf6+ {[%emt
00:00:01] [%clk 00:00:34]} Rf3 {[%emt 00:00:06] [%clk 00:00:20]} 79. e7 {[%emt
00:00:31] [%clk 00:00:13]} Rxf6 {[%emt 00:00:13] [%clk 00:00:18]} 80. e8=Q
{[%emt 00:00:01] [%clk 00:00:21]} Rf4+ {[%emt 00:00:12] [%clk 00:00:16]} 81. Kd3
{[%emt 00:00:08] [%clk 00:00:24]} Rxh4 {[%emt 00:00:13] [%clk 00:00:12]} 82.
Qe2+ {[%emt 00:00:21] [%clk 00:00:13]} Kg1 {[%emt 00:00:01] [%clk 00:00:21]} 83.
Ke3 {[%emt 00:00:05] [%clk 00:00:18]} Rg4 {[%emt 00:00:11] [%clk 00:00:20]} 84.
Kf3 {[%emt 00:00:14] [%clk 00:00:14]} g2 {[%clk 00:00:29]} 85. Qe1+ {[%emt
00:00:01] [%clk 00:00:24]} Kh2 {[%clk 00:00:38]} 86. Qe5+ {[%clk 00:00:33]} Kg1
{[%emt 00:00:07] [%clk 00:00:41]} 87. Qc5+ {[%emt 00:00:08] [%clk 00:00:36]} 1-0

[Site "Europe Echecs"]

[Event "Championnat d'Europe Rapide"]
[Date "2024.12.07"]
[White "Fridman, Daniel"]
[Black "Arnaudov, G. Petar"]
[WhiteElo "2571"]
[BlackElo "2401"]
[Round "4.15"]
[Result "1-0"]
[TimeControl "900+10"]

1. Nf3 {[%emt 00:01:35] [%clk 00:13:43]} Nf6 {[%emt 00:00:02] [%clk 00:15:19]}
2. g3 {[%emt 00:00:02] [%clk 00:13:51]} d5 {[%emt 00:00:11] [%clk 00:15:17]} 3.
Bg2 {[%emt 00:00:02] [%clk 00:13:59]} e6 {[%emt 00:00:03] [%clk 00:15:26]} 4.
O-O {[%emt 00:00:02] [%clk 00:14:06]} Be7 {[%emt 00:00:02] [%clk 00:15:34]} 5.
d4 {[%emt 00:00:08] [%clk 00:14:08]} O-O {[%emt 00:00:03] [%clk 00:15:40]} 6. c4
{[%emt 00:00:02] [%clk 00:14:16]} a5 {[%emt 00:00:28] [%clk 00:15:22]} 7. Qc2
{[%emt 00:00:11] [%clk 00:14:15]} Nbd7 {[%emt 00:00:04] [%clk 00:15:28]} 8. Rd1
{[%emt 00:00:03] [%clk 00:14:22]} c6 {[%emt 00:00:19] [%clk 00:15:20]} 9. Nbd2
{[%emt 00:00:15] [%clk 00:14:16]} a4 {[%emt 00:01:41] [%clk 00:13:50]} 10. e4
{[%emt 00:00:07] [%clk 00:14:18]} Nxe4 {[%emt 00:01:25] [%clk 00:12:35]} 11.
Nxe4 {[%emt 00:00:02] [%clk 00:14:26]} dxe4 {[%emt 00:00:02] [%clk 00:12:44]}
12. Qxe4 {[%emt 00:00:04] [%clk 00:14:32]} Bf6 {[%emt 00:00:59] [%clk 00:11:56]}
13. Bf4 {[%emt 00:00:36] [%clk 00:14:04]} Re8 {[%emt 00:00:33] [%clk 00:11:33]}
14. c5 {[%emt 00:01:09] [%clk 00:13:05]} Be7 {[%emt 00:01:20] [%clk 00:10:24]}
15. Qc2 {[%emt 00:00:30] [%clk 00:12:45]} Nf6 {[%emt 00:00:50] [%clk 00:09:44]}
16. Bg5 {[%emt 00:00:02] [%clk 00:12:53]} h6 {[%emt 00:00:12] [%clk 00:09:42]}
17. Bxf6 {[%emt 00:00:03] [%clk 00:13:01]} Bxf6 {[%clk 00:09:51]} 18. Ne5 {[%emt
00:00:01] [%clk 00:13:09]} Qc7 {[%emt 00:01:18] [%clk 00:08:43]} 19. f4 {[%emt
00:00:59] [%clk 00:12:19]} Rd8 {[%emt 00:00:14] [%clk 00:08:40]} 20. Rd2 {[%emt
00:00:26] [%clk 00:12:02]} Bd7 {[%emt 00:00:35] [%clk 00:08:15]} 21. Nc4 {[%emt
00:00:09] [%clk 00:12:03]} Be8 {[%emt 00:00:39] [%clk 00:07:47]} 22. Rad1 {[%emt
00:00:01] [%clk 00:12:10]} Ra6 {[%emt 00:01:19] [%clk 00:06:39]} 23. Bf1 {[%emt
00:00:29] [%clk 00:11:50]} g6 {[%emt 00:00:52] [%clk 00:05:58]} 24. Qc3 {[%emt
00:01:30] [%clk 00:10:30]} Rd5 {[%emt 00:00:54] [%clk 00:05:14]} 25. Ne3 {[%emt
00:00:43]} Ra8 {[%clk 00:04:47]} 26. Nxd5 {[%emt 00:00:02] [%clk 00:10:40]} cxd5
{[%emt 00:00:09] [%clk 00:04:49]} 27. b4 {[%emt 00:01:42] [%clk 00:09:08]} b5
{[%emt 00:00:46] [%clk 00:04:13]} 28. Qe3 {[%emt 00:00:22] [%clk 00:08:55]} h5
{[%emt 00:00:11] [%clk 00:04:13]} 29. Bd3 {[%emt 00:00:07] [%clk 00:08:57]} Kg7
{[%emt 00:00:18] [%clk 00:04:05]} 30. h3 {[%emt 00:00:07] [%clk 00:09:00]} Bc6
{[%emt 00:00:04] [%clk 00:04:12]} 31. Rh2 {[%emt 00:00:10] [%clk 00:08:58]} Rh8
{[%emt 00:00:22] [%clk 00:04:01]} 32. Rdd2 {[%emt 00:00:03] [%clk 00:09:05]} Qb8
{[%emt 00:00:37] [%clk 00:03:35]} 33. a3 {[%emt 00:00:03] [%clk 00:09:12]} Bd8
{[%emt 00:00:02] [%clk 00:03:43]} 34. Qe5+ {[%emt 00:00:49] [%clk 00:08:32]} Bf6
{[%emt 00:00:21] [%clk 00:03:33]} 35. Qxb8 {[%emt 00:00:52] [%clk 00:07:49]}
Bxd4+ {[%emt 00:01:09] [%clk 00:02:35]} 36. Kh1 {[%emt 00:00:02] [%clk
00:07:56]} Rxb8 {[%emt 00:00:03] [%clk 00:02:42]} 37. Bxb5 {[%emt 00:00:02]
[%clk 00:08:05]} Rxb5 {[%emt 00:00:23] [%clk 00:02:30]} 38. Rxd4 {[%emt
00:00:02] [%clk 00:08:13]} f6 {[%emt 00:00:02] [%clk 00:02:37]} 39. Re2 {[%emt
00:00:01] [%clk 00:08:21]} Kf7 {[%emt 00:00:04] [%clk 00:02:43]} 40. g4 {[%emt
00:00:26] [%clk 00:08:05]} hxg4 {[%emt 00:00:24] [%clk 00:02:29]} 41. hxg4
{[%emt 00:00:01] [%clk 00:08:13]} g5 {[%emt 00:00:18] [%clk 00:02:22]} 42. fxg5
{[%emt 00:00:10] [%clk 00:08:13]} e5 {[%emt 00:00:12] [%clk 00:02:20]} 43. Rdd2
{[%emt 00:00:22] [%clk 00:08:00]} d4+ {[%emt 00:00:38] [%clk 00:01:53]} 44. Kg1
{[%emt 00:00:04] [%clk 00:08:05]} Ke6 {[%emt 00:00:21] [%clk 00:01:42]} 45. Rxd4
{[%emt 00:00:14] [%clk 00:08:01]} 1-0

[Site "Europe Echecs"]

[Event "Championnat d'Europe Rapide"]
[Date "2024.12.07"]
[White "Popovic, Milos T"]
[Black "Kozul, Zdenko"]
[WhiteElo "2334"]
[BlackElo "2519"]
[Round "4.16"]
[Result "1-0"]
[TimeControl "900+10"]

1. d4 {[%emt 00:00:01] [%clk 00:15:18]} Nf6 {[%emt 00:00:03] [%clk 00:15:18]} 2.
Bg5 {[%emt 00:00:07] [%clk 00:15:21]} Ne4 {[%emt 00:00:17] [%clk 00:15:10]} 3.
Bf4 {[%emt 00:00:03] [%clk 00:15:28]} d5 {[%emt 00:00:17] [%clk 00:15:03]} 4. e3
{[%emt 00:00:26] [%clk 00:15:12]} c5 {[%emt 00:00:17] [%clk 00:14:56]} 5. Bd3
{[%emt 00:00:02] [%clk 00:15:20]} Nc6 {[%emt 00:00:18] [%clk 00:14:48]} 6. Bxe4
{[%emt 00:01:05] [%clk 00:14:25]} dxe4 {[%emt 00:00:02] [%clk 00:14:56]} 7. Ne2
{[%emt 00:01:19] [%clk 00:13:16]} Bg4 {[%emt 00:05:47] [%clk 00:09:19]} 8. Nbc3
{[%emt 00:00:02] [%clk 00:13:24]} e6 {[%emt 00:01:45] [%clk 00:07:44]} 9. dxc5
{[%emt 00:00:25] [%clk 00:13:10]} e5 {[%emt 00:00:24] [%clk 00:07:29]} 10. Bg3
{[%emt 00:00:39] [%clk 00:12:42]} f5 {[%emt 00:00:10] [%clk 00:07:29]} 11. h3
{[%emt 00:00:21] [%clk 00:12:30]} Bh5 {[%emt 00:00:03] [%clk 00:07:36]} 12.
Qxd8+ {[%emt 00:00:51] [%clk 00:11:50]} Rxd8 {[%emt 00:00:02] [%clk 00:07:44]}
13. Bh4 {[%emt 00:00:01] [%clk 00:11:58]} Rd7 {[%emt 00:00:59]} 14. g4 {[%emt
00:00:02] [%clk 00:12:04]} fxg4 {[%emt 00:00:05] [%clk 00:07:02]} 15. Ng3 {[%emt
00:00:08] [%clk 00:12:06]} Bg6 {[%emt 00:00:05] [%clk 00:07:07]} 16. hxg4 {[%emt
00:00:07] [%clk 00:12:10]} Bxc5 {[%emt 00:00:11] [%clk 00:07:05]} 17. Ncxe4
{[%emt 00:00:49] [%clk 00:11:32]} Bb6 {[%emt 00:00:59] [%clk 00:06:15]} 18. O-O
{[%emt 00:00:59] [%clk 00:10:43]} Nb4 {[%emt 00:00:24] [%clk 00:06:01]} 19. Rad1
{[%emt 00:00:37] [%clk 00:10:17]} h6 {[%emt 00:02:22] [%clk 00:03:48]} 20. Rxd7
{[%emt 00:00:07] [%clk 00:10:21]} Kxd7 {[%emt 00:00:01] [%clk 00:03:57]} 21.
Rd1+ {[%emt 00:00:01] [%clk 00:10:30]} Kc7 {[%emt 00:00:01] [%clk 00:04:05]} 22.
Be7 {[%emt 00:00:16] [%clk 00:10:24]} Nc6 {[%emt 00:00:08] [%clk 00:04:07]} 23.
Bd6+ {[%emt 00:00:37] [%clk 00:09:57]} Kc8 {[%emt 00:00:01] [%clk 00:04:16]} 24.
Nf5 {[%emt 00:00:12] [%clk 00:09:56]} Rd8 {[%emt 00:00:09] [%clk 00:04:17]} 25.
Rd3 {[%emt 00:00:57] [%clk 00:09:09]} h5 {[%emt 00:00:02] [%clk 00:04:24]} 26.
Rc3 {[%emt 00:00:19] [%clk 00:09:01]} Kd7 {[%emt 00:00:10] [%clk 00:04:24]} 27.
f3 {[%emt 00:02:10] [%clk 00:07:01]} hxg4 {[%emt 00:00:10] [%clk 00:04:23]} 28.
fxg4 {[%emt 00:00:01] [%clk 00:07:10]} Nd4 {[%emt 00:00:28] [%clk 00:04:05]} 29.
exd4 {[%emt 00:00:48] [%clk 00:06:33]} Bxf5 {[%clk 00:04:14]} 30. gxf5 {[%emt
00:00:07] [%clk 00:06:35]} Bxd4+ {[%emt 00:00:01] [%clk 00:04:23]} 31. Kg2
{[%emt 00:00:05] [%clk 00:06:41]} Bxc3 {[%emt 00:00:01] [%clk 00:04:32]} 32.
bxc3 {[%emt 00:00:01] [%clk 00:06:50]} Rc8 {[%emt 00:00:25] [%clk 00:04:18]} 33.
Kf3 {[%emt 00:00:26] [%clk 00:06:33]} g6 {[%emt 00:01:13] [%clk 00:03:15]} 34.
fxg6 {[%emt 00:00:21] [%clk 00:06:22]} Ke6 {[%emt 00:00:02] [%clk 00:03:22]} 35.
g7 {[%emt 00:00:03] [%clk 00:06:29]} Kf7 {[%emt 00:00:24] [%clk 00:03:08]} 36.
Bxe5 {[%emt 00:00:32] [%clk 00:06:07]} Rc6 {[%emt 00:00:02] [%clk 00:03:17]} 37.
Nd6+ {[%emt 00:00:23] [%clk 00:05:54]} Kg8 {[%emt 00:00:02] [%clk 00:03:24]} 38.
Nxb7 {[%emt 00:00:09] [%clk 00:05:56]} Ra6 {[%emt 00:00:02] [%clk 00:03:32]} 39.
Nd6 {[%emt 00:00:18] [%clk 00:05:47]} 1-0

[Site "Europe Echecs"]